fUSD/lending_fUSD_20240425
["ID","MTS","AMOUNT","RATE_DAILY","PERIOD"]
[323491547,1714049444396,-500.0,0.0001217,2]
[323491548,1714049444406,-500.0,0.0001217,2]
[323491549,1714049444607,-500.0,0.0001217,2]
[323491550,1714049444617,-566.51,0.0001217,2]
[323491551,1714049444627,-500.0,0.0001217,2]
[323491552,1714049444637,-9015.46,0.0001217,2]
[323491553,1714049444650,-1179.12,0.0001217,2]
[323491554,1714049444660,-500.0,0.0001217,2]
[323491555,1714049444670,-1376.75,0.0001217,2]
[323491556,1714049444679,-500.0,0.0001217,2]
[323491557,1714049444689,-500.0,0.0001217,2]
[323491558,1714049444698,-2679.55,0.0001217,2]
[323491559,1714049444708,-500.0,0.0001217,2]
[323491560,1714049444717,-1804.82,0.0001217,2]
[323491561,1714049444726,-500.0,0.0001217,2]
[323491562,1714049444736,-500.0,0.0001217,2]
[323491563,1714049444745,-500.0,0.0001217,2]
[323491564,1714049444754,-500.0,0.0001217,2]
[323491565,1714049444763,-500.0,0.0001217,2]
[323491566,1714049444773,-3415.61,0.0001217,2]
[323491567,1714049444782,-500.0,0.0001217,2]
[323491568,1714049444792,-500.0,0.0001217,2]
[323491569,1714049444802,-1419.94,0.0001217,2]
[323491570,1714049444811,-500.0,0.0001217,2]
[323491571,1714049444821,-500.0,0.0001217,2]
[323491572,1714049444831,-1140.85,0.0001217,2]
[323491573,1714049444840,-17406.02,0.0001217,2]
[323491574,1714049444850,-2053.76,0.0001217,2]
[323491575,1714049444859,-500.0,0.0001217,2]
[323491576,1714049444868,-897.66,0.0001217,2]
[323491577,1714049444878,-3217.0,0.0001217,2]
[323491578,1714049444890,-500.0,0.0001217,2]
[323491579,1714049444900,-500.0,0.0001217,2]
[323491580,1714049444910,-500.0,0.0001217,2]
[323491581,1714049444919,-3689.77,0.0001217,2]
[323491582,1714049444929,-500.0,0.0001217,2]
[323491583,1714049444939,-500.0,0.0001217,2]
[323491584,1714049444949,-500.0,0.0001217,2]
[323491585,1714049444959,-500.0,0.0001217,2]
[323491586,1714049444970,-1706.73,0.0001217,2]
[323491587,1714049444980,-500.0,0.00012171,2]
[323491588,1714049444989,-500.0,0.00012171,2]
[323491589,1714049444999,-500.0,0.00012171,2]
[323491590,1714049445008,-500.0,0.00012171,2]
[323491591,1714049445018,-500.0,0.00012171,2]
[323491592,1714049445028,-500.0,0.00012171,2]
[323491593,1714049445037,-500.0,0.00012171,2]
[323491594,1714049445047,-334.61,0.00012171,2]
[323491595,1714049445056,-500.0,0.00012171,2]
[323491596,1714049445065,-500.0,0.00012171,2]
[323491597,1714049445074,-500.0,0.00012171,2]
[323491598,1714049445085,-500.0,0.00012171,2]
[323491599,1714049445094,-368.53,0.00012171,2]
[323491600,1714049445104,-500.0,0.00012171,2]
[323491601,1714049445113,-554.60604976,0.00012171,2]
[323491602,1714049445122,-500.0,0.00012171,2]
[323491603,1714049445131,-500.0,0.00012171,2]
[323491604,1714049445143,-500.0,0.00012171,2]
[323491605,1714049445153,-518.48,0.00012171,2]
[323491606,1714049445162,-500.0,0.00012171,2]
[323491607,1714049445171,-500.0,0.00012171,2]
[323491608,1714049445181,-500.0,0.00012171,2]
[323491609,1714049445192,-500.0,0.00012171,2]
[323491610,1714049445202,-500.0,0.00012171,2]
[323491611,1714049445212,-570.33,0.00012171,2]
[323491612,1714049445222,-500.0,0.00012171,2]
[323491613,1714049445232,-517.96,0.00012171,2]
[323491614,1714049445240,-500.0,0.00012171,2]
[323491615,1714049445250,-500.0,0.00012171,2]
[323491616,1714049445259,-500.0,0.00012171,2]
[323491617,1714049445269,-500.0,0.00012171,2]
[323491618,1714049445278,-1000.0,0.00012171,2]
[323491619,1714049445288,-500.0,0.00012171,2]
[323491620,1714049445297,-500.0,0.00012171,2]
[323491621,1714049445307,-732.9,0.00012171,2]
[323491622,1714049445316,-500.0,0.00012171,2]
[323491623,1714049445325,-488.0,0.00012171,2]
[323491624,1714049445335,-500.0,0.00012171,2]
[323491625,1714049445344,-500.0,0.00012171,2]
[323491626,1714049445353,-500.0,0.00012171,2]
[323491627,1714049445362,-500.0,0.00012171,2]
[323491628,1714049445372,-500.0,0.00012171,2]
[323491630,1714049445382,-500.0,0.00012171,2]
[323491631,1714049445394,-235.79,0.00012171,2]
[323491633,1714049445404,-560.52,0.00012171,2]
[323491635,1714049445414,-500.0,0.00012171,2]
[323491636,1714049445423,-500.0,0.00012171,2]
[323491637,1714049445433,-500.0,0.00012171,2]
[323491639,1714049445443,-500.0,0.00012171,2]
[323491641,1714049445452,-500.0,0.00012171,2]
[323491642,1714049445461,-500.0,0.00012171,2]
[323491643,1714049445470,-500.0,0.00012171,2]
[323491644,1714049445480,-500.0,0.00012171,2]
[323491645,1714049445489,-500.0,0.00012171,2]
[323491646,1714049445498,-500.0,0.00012171,2]
[323491648,1714049445508,-500.0,0.00012171,2]
[323491651,1714049445517,-500.0,0.00012171,2]
[323491653,1714049445526,-500.0,0.00012171,2]
[323491655,1714049445537,-500.0,0.00012171,2]
[323491657,1714049445546,-500.0,0.00012171,2]
[323491659,1714049445556,-500.0,0.00012171,2]
[323491662,1714049445565,-500.0,0.00012171,2]
[323491665,1714049445574,-500.0,0.00012171,2]
[323491667,1714049445583,-500.0,0.00012171,2]
[323491669,1714049445592,-500.0,0.00012171,2]
[323491671,1714049445602,-500.0,0.00012171,2]
[323491673,1714049445611,-500.0,0.00012171,2]
[323491675,1714049445620,-500.0,0.00012171,2]
[323491677,1714049445629,-500.0,0.00012171,2]
[323491679,1714049445638,-500.0,0.00012171,2]
[323491681,1714049445649,-500.0,0.00012171,2]
[323491682,1714049445659,-520.04490783,0.00012171,2]
[323491683,1714049445668,-608.59,0.00012171,2]
[323491684,1714049445677,-500.0,0.00012171,2]
[323491685,1714049445686,-500.0,0.00012171,2]
[323491687,1714049445696,-500.0,0.00012171,2]
[323491689,1714049445705,-500.0,0.00012171,2]
[323491691,1714049445715,-500.0,0.00012171,2]
[323491693,1714049445724,-500.0,0.00012171,2]
[323491695,1714049445733,-500.0,0.00012171,2]
[323491697,1714049445742,-500.0,0.00012171,2]
[323491699,1714049445752,-592.72672559,0.00012171,2]
[323491701,1714049445761,-500.0,0.00012171,2]
[323491703,1714049445770,-500.0,0.00012171,2]
[323491705,1714049445779,-500.0,0.00012171,2]
[323491707,1714049445789,-500.0,0.00012171,2]
[323491709,1714049445798,-1301.24,0.00012171,2]
[323491711,1714049445808,-500.0,0.00012171,2]
[323491713,1714049445817,-500.0,0.00012171,2]
[323491715,1714049445826,-500.0,0.00012171,2]
[323491717,1714049445836,-500.0,0.00012171,2]
[323491719,1714049445845,-1049.0,0.00012171,2]
[323491721,1714049445855,-500.0,0.00012171,2]
[323491723,1714049445864,-500.0,0.00012171,2]
[323491725,1714049445874,-500.0,0.00012171,2]
[323491727,1714049445883,-236.44,0.00012171,2]
[323491729,1714049445897,-500.0,0.00012171,2]
[323491731,1714049445906,-500.0,0.00012171,2]
[323491733,1714049445915,-500.0,0.00012171,2]
[323491735,1714049445925,-500.0,0.00012171,2]
[323491736,1714049445934,-500.0,0.00012171,2]
[323491738,1714049445943,-500.0,0.00012171,2]
[323491740,1714049445952,-500.0,0.00012171,2]
[323491742,1714049445963,-500.0,0.00012171,2]
[323491743,1714049445973,-500.0,0.00012171,2]
[323491744,1714049445982,-500.0,0.00012171,2]
[323491745,1714049445992,-230.6000826,0.00012171,2]
[323491746,1714049446002,-601.69,0.00012171,2]
[323491747,1714049446011,-1915.05,0.00012171,2]
[323491748,1714049446020,-500.0,0.00012171,2]
[323491749,1714049446030,-923.33,0.00012171,2]
[323491750,1714049446040,-500.0,0.00012171,2]
[323491751,1714049446049,-500.0,0.00012171,2]
[323491752,1714049446058,-500.0,0.00012171,2]
[323491753,1714049446067,-500.0,0.00012171,2]
[323491754,1714049446077,-385.65,0.00012171,2]
[323491755,1714049446087,-500.0,0.00012171,2]
[323491756,1714049446096,-150.47,0.00012247,2]
[323491757,1714049446106,-308.89,0.00012247,2]
[323491758,1714049446115,-162.21,0.00012247,2]
[323491759,1714049446124,-418.94,0.00012247,2]
[323491760,1714049446134,-522.13,0.00012247,2]
[323491761,1714049446146,-436.96,0.00012247,2]
[323491762,1714049446156,-215.5,0.00012247,2]
[323491763,1714049446165,-150.58,0.00012247,2]
[323491764,1714049446174,-323.36,0.00012247,2]
[323491765,1714049446184,-150.0,0.00012247,2]
[323491766,1714049446194,-162.85,0.00012247,2]
[323491767,1714049446203,-350.51,0.00012247,2]
[323491768,1714049446214,-150.0,0.00012247,2]
[323491769,1714049446223,-522.13,0.00012247,2]
[323491770,1714049446232,-522.13,0.00012247,2]
[323491771,1714049446242,-150.0,0.00012247,2]
[323491772,1714049446251,-162.85,0.00012247,2]
[323491773,1714049446260,-350.51,0.00012247,2]
[323491774,1714049446269,-150.0,0.00012247,2]
[323491775,1714049446278,-162.85,0.00012247,2]
[323491776,1714049446287,-150.0,0.00012247,2]
[323491777,1714049446296,-150.0,0.00012247,2]
[323491778,1714049446306,-350.51,0.00012247,2]
[323491779,1714049446315,-522.13,0.00012247,2]
[323491780,1714049446324,-161.92,0.00012247,2]
[323491781,1714049446333,-522.13,0.00012247,2]
[323491782,1714049446343,-350.51,0.00012247,2]
[323491783,1714049446352,-150.0,0.00012247,2]
[323491784,1714049446365,-10000.0,0.00012251,2]
[323491785,1714049446375,-1581.18004638,0.00012253,2]
[323491786,1714049446384,-522.13,0.00012274,2]
[323491787,1714049446397,-150.0,0.00012274,2]
[323491788,1714049446406,-522.13,0.00012274,2]
[323491789,1714049446416,-1651.47,0.00012328,2]
[323491790,1714049446426,-554.34,0.00012442,2]
[323491791,1714049446436,-500.0,0.00012442,2]
[323491793,1714049446445,-521.94462012,0.00012443,2]
[323491795,1714049446454,-500.0,0.00012443,2]
[323491796,1714049446464,-500.0,0.00012443,2]
[323491797,1714049446474,-500.0,0.00012443,2]
[323491798,1714049446482,-500.0,0.00012443,2]
[323491799,1714049446492,-621.28,0.00012443,2]
[323491800,1714049446501,-500.0,0.00012443,2]
[323491801,1714049446511,-500.0,0.00012443,2]
[323491802,1714049446520,-500.0,0.00012443,2]
[323491803,1714049446530,-500.0,0.00012443,2]
[323491804,1714049446539,-500.0,0.00012443,2]
[323491805,1714049446548,-500.0,0.00012443,2]
[323491806,1714049446557,-500.0,0.00012443,2]
[323491807,1714049446567,-500.0,0.00012443,2]
[323491808,1714049446576,-500.0,0.00012443,2]
[323491809,1714049446585,-500.0,0.00012443,2]
[323491810,1714049446594,-500.0,0.00012443,2]
[323491811,1714049446603,-500.0,0.00012444,2]
[323491812,1714049446612,-500.0,0.00012444,2]
[323491813,1714049446621,-500.0,0.00012444,2]
[323491814,1714049446630,-500.0,0.00012444,2]
[323491815,1714049446639,-567.82,0.00012444,2]
[323491816,1714049446650,-500.0,0.00012444,2]
[323491817,1714049446660,-500.0,0.00012444,2]
[323491818,1714049446670,-1080.19,0.00012444,2]
[323491819,1714049446679,-640.98,0.00012444,2]
[323491820,1714049446688,-500.0,0.00012444,2]
[323491821,1714049446698,-500.0,0.00012444,2]
[323491822,1714049446707,-12983.83,0.00012444,2]
[323491823,1714049446716,-3843.45,0.00012444,2]
[323491824,1714049446725,-500.0,0.00012444,2]
[323491825,1714049446735,-1439.26,0.00012444,2]
[323491826,1714049446744,-500.0,0.00012444,2]
[323491827,1714049446754,-500.0,0.00012444,2]
[323491828,1714049446763,-500.0,0.00012444,2]
[323491829,1714049446772,-348.05,0.00012444,2]
[323491830,1714049446781,-1070.09,0.00012444,2]
[323491831,1714049446791,-500.0,0.00012444,2]
[323491832,1714049446801,-619.98,0.00012444,2]
[323491833,1714049446811,-500.0,0.00012444,2]
[323491834,1714049446821,-500.0,0.00012444,2]
[323491835,1714049446830,-1293.71,0.00012444,2]
[323491836,1714049446840,-500.0,0.00012444,2]
[323491837,1714049446849,-338.98,0.00012444,2]
[323491838,1714049446859,-500.0,0.00012444,2]
[323491839,1714049446870,-500.0,0.00012444,2]
[323491840,1714049446879,-928.12,0.00012444,2]
[323491841,1714049446893,-446.48998545,0.00012444,2]
[323491842,1714049446903,-500.0,0.00012444,2]
[323491843,1714049446913,-500.0,0.00012444,2]
[323491844,1714049446923,-500.0,0.00012444,2]
[323491845,1714049446984,-2254.44,0.00012444,2]
[323491846,1714049446994,-500.0,0.00012444,2]
[323491847,1714049447003,-500.0,0.00012444,2]
[323491848,1714049447013,-500.0,0.00012444,2]
[323491849,1714049447022,-500.0,0.00012444,2]
[323491850,1714049447031,-779.21,0.00012444,2]
[323491851,1714049447040,-500.0,0.00012444,2]
[323491852,1714049447049,-500.0,0.00012444,2]
[323491853,1714049447058,-1142.88,0.00012444,2]
[323491854,1714049447067,-569.64,0.00012444,2]
[323491855,1714049447077,-500.0,0.00012444,2]
[323491856,1714049447087,-1589.43,0.00012444,2]
[323491857,1714049447096,-500.0,0.00012444,2]
[323491858,1714049447106,-580.22,0.00012444,2]
[323491859,1714049447116,-500.0,0.00012444,2]
[323491860,1714049447125,-500.0,0.00012444,2]
[323491861,1714049447135,-852.07,0.00012444,2]
[323491862,1714049447147,-500.0,0.00012444,2]
[323491863,1714049447156,-938.56,0.00012444,2]
[323491864,1714049447165,-268.21,0.00012444,2]
[323491865,1714049447174,-500.0,0.00012444,2]
[323491866,1714049447183,-500.0,0.00012444,2]
[323491867,1714049447192,-500.0,0.00012444,2]
[323491868,1714049447201,-500.0,0.00012444,2]
[323491869,1714049447211,-500.0,0.00012444,2]
[323491870,1714049447220,-189.79590315,0.00012444,2]
[323491871,1714049447229,-3837.92,0.00012444,2]
[323491872,1714049447238,-500.0,0.00012444,2]
[323491873,1714049447247,-500.0,0.00012444,2]
[323491874,1714049447256,-612.84,0.00012444,2]
[323491875,1714049447265,-3121.16,0.00012444,2]
[323491876,1714049447274,-500.0,0.00012444,2]
[323491877,1714049447283,-500.0,0.00012444,2]
[323491878,1714049447292,-500.0,0.00012444,2]
[323491879,1714049447301,-500.0,0.00012444,2]
[323491880,1714049447310,-500.0,0.00012444,2]
[323491881,1714049447319,-500.0,0.00012444,2]
[323491882,1714049447328,-500.0,0.00012444,2]
[323491883,1714049447337,-500.0,0.00012444,2]
[323491884,1714049447346,-9015.46,0.00012444,2]
[323491885,1714049447355,-1179.12,0.00012444,2]
[323491886,1714049447364,-500.0,0.00012444,2]
[323491887,1714049447373,-1376.75,0.00012444,2]
[323491888,1714049447382,-500.0,0.00012444,2]
[323491889,1714049447394,-500.0,0.00012444,2]
[323491890,1714049447402,-2679.55,0.00012444,2]
[323491891,1714049447411,-500.0,0.00012444,2]
[323491892,1714049447421,-1804.82,0.00012444,2]
[323491893,1714049447430,-500.0,0.00012444,2]
[323491894,1714049447439,-287.21,0.00012444,2]
[323491895,1714049447448,-3415.61,0.00012444,2]
[323491896,1714049447458,-500.0,0.00012444,2]
[323491897,1714049447468,-500.0,0.00012444,2]
[323491898,1714049447476,-500.0,0.00012444,2]
[323491899,1714049447485,-500.0,0.00012444,2]
[323491900,1714049447495,-1140.85,0.00012444,2]
[323491901,1714049447504,-17406.02,0.00012444,2]
[323491902,1714049447513,-2053.76,0.00012444,2]
[323491903,1714049447522,-897.66,0.00012444,2]
[323491904,1714049447531,-500.0,0.00012444,2]
[323491905,1714049447540,-3217.0,0.00012444,2]
[323491906,1714049447549,-3689.77,0.00012444,2]
[323491907,1714049447557,-500.0,0.00012444,2]
[323491908,1714049447566,-500.0,0.00012444,2]
[323491909,1714049447575,-500.0,0.00012444,2]
[323491910,1714049447584,-1706.73,0.00012444,2]
[323491911,1714049447593,-500.0,0.00012445,2]
[323491912,1714049447602,-500.0,0.00012445,2]
[323491913,1714049447612,-506.67,0.00012445,2]
[323491914,1714049447621,-500.0,0.00012445,2]
[323491915,1714049447630,-500.0,0.00012445,2]
[323491916,1714049447644,-500.0,0.00012445,2]
[323491917,1714049447654,-500.0,0.00012445,2]
[323491918,1714049447664,-500.0,0.00012445,2]
[323491919,1714049447674,-323.6,0.00012445,2]
[323491920,1714049447684,-500.0,0.00012445,2]
[323491921,1714049447693,-550.0,0.00012445,2]
[323491922,1714049447702,-500.0,0.00012445,2]
[323491923,1714049447712,-600.0,0.00012445,2]
[323491924,1714049447721,-446.2,0.00012445,2]
[323491925,1714049447730,-500.0,0.00012445,2]
[323491926,1714049447739,-500.0,0.00012445,2]
[323491927,1714049447749,-500.0,0.00012445,2]
[323491928,1714049447758,-732.9,0.00012445,2]
[323491929,1714049447767,-500.0,0.00012445,2]
[323491930,1714049447777,-500.0,0.00012445,2]
[323491931,1714049447786,-500.0,0.00012445,2]
[323491932,1714049447796,-500.0,0.00012445,2]
[323491933,1714049447806,-500.0,0.00012445,2]
[323491934,1714049447816,-216.65808438,0.00012445,2]
[323491935,1714049447825,-500.0,0.00012445,2]
[323491936,1714049447834,-500.0,0.00012445,2]
[323491937,1714049447843,-551.1,0.00012445,2]
[323491938,1714049447852,-545.07886135,0.00012445,2]
[323491939,1714049447862,-613.57471778,0.00012445,2]
[323491940,1714049447871,-500.0,0.00012445,2]
[323491941,1714049447881,-500.0,0.00012445,2]
[323491942,1714049447894,-500.0,0.00012445,2]
[323491943,1714049447904,-258.58,0.00012445,2]
[323491944,1714049447914,-500.0,0.00012445,2]
[323491945,1714049447924,-500.0,0.00012445,2]
[323491946,1714049447933,-500.0,0.00012445,2]
[323491947,1714049447943,-500.0,0.00012445,2]
[323491948,1714049447952,-500.0,0.00012445,2]
[323491949,1714049447962,-500.0,0.00012445,2]
[323491950,1714049447971,-500.0,0.00012445,2]
[323491951,1714049447981,-500.0,0.00012445,2]
[323491952,1714049447992,-608.59,0.00012445,2]
[323491953,1714049448002,-500.0,0.00012445,2]
[323491954,1714049448011,-500.0,0.00012445,2]
[323491955,1714049448020,-500.0,0.00012445,2]
[323491956,1714049448028,-500.0,0.00012445,2]
[323491957,1714049448037,-500.0,0.00012445,2]
[323491958,1714049448046,-500.0,0.00012445,2]
[323491959,1714049448055,-500.0,0.00012445,2]
[323491960,1714049448064,-500.0,0.00012445,2]
[323491961,1714049448073,-596.9954473,0.00012445,2]
[323491962,1714049448082,-551.61,0.00012445,2]
[323491963,1714049448092,-1301.24,0.00012445,2]
[323491964,1714049448102,-500.0,0.00012445,2]
[323491965,1714049448111,-500.0,0.00012445,2]
[323491966,1714049448121,-500.0,0.00012445,2]
[323491967,1714049448131,-500.0,0.00012445,2]
[323491968,1714049448141,-1049.0,0.00012445,2]
[323491969,1714049448152,-500.0,0.00012445,2]
[323491970,1714049448162,-500.0,0.00012445,2]
[323491971,1714049448172,-500.0,0.00012445,2]
[323491972,1714049448181,-500.0,0.00012445,2]
[323491973,1714049448190,-500.0,0.00012445,2]
[323491974,1714049448200,-500.0,0.00012445,2]
[323491975,1714049448210,-500.0,0.00012445,2]
[323491976,1714049448220,-500.0,0.00012445,2]
[323491977,1714049448229,-500.0,0.00012445,2]
[323491978,1714049448238,-500.0,0.00012445,2]
[323491979,1714049448247,-349.0,0.00012445,2]
[323491980,1714049448258,-601.69,0.00012445,2]
[323491981,1714049448268,-1915.05,0.00012445,2]
[323491982,1714049448279,-500.0,0.00012445,2]
[323491983,1714049448288,-923.33,0.00012445,2]
[323491984,1714049448297,-500.0,0.00012445,2]
[323491985,1714049448306,-500.0,0.00012445,2]
[323491986,1714049448315,-500.0,0.00012445,2]
[323491987,1714049448325,-168.57,0.00012474,2]
[323491988,1714049448334,-150.0,0.00012479,2]
[323491989,1714049448343,-150.0,0.00012481,2]
[323491990,1714049448353,-155.0,0.000125,2]
[323491991,1714049448362,-522.13,0.000125,2]
[323491992,1714049448371,-150.0,0.000125,2]
[323491993,1714049448380,-522.13,0.000125,2]
[323491994,1714049448389,-150.0,0.00012561,2]
[323491995,1714049448401,-150.0,0.00012566,2]
[323491996,1714049448411,-150.0,0.00012614,2]
[323491997,1714049448420,-275.62,0.00012621,2]
[323491998,1714049448430,-150.0,0.00012632,2]
[323491999,1714049448439,-150.0,0.00012644,2]
[323492000,1714049448448,-290.37019386,0.00012667,2]
[323492001,1714049448457,-155.0,0.00012716,2]
[323492002,1714049448466,-641.61516885,0.00012716,2]
[323492003,1714049448476,-1747.36191477,0.00012716,2]
[323492004,1714049448485,-247.6,0.00012716,2]
[323492005,1714049448494,-177.58,0.00012717,2]
[323492006,1714049448503,-500.0,0.00012717,2]
[323492007,1714049448512,-500.0,0.00012717,2]
[323492008,1714049448520,-500.0,0.00012717,2]
[323492009,1714049448529,-500.0,0.00012717,2]
[323492010,1714049448539,-500.0,0.00012717,2]
[323492011,1714049448548,-500.0,0.00012717,2]
[323492012,1714049448557,-500.0,0.00012717,2]
[323492013,1714049448566,-500.0,0.00012717,2]
[323492014,1714049448575,-500.0,0.00012718,2]
[323492015,1714049448585,-500.0,0.00012718,2]
[323492016,1714049448594,-516.31,0.00012718,2]
[323492017,1714049448603,-445.61,0.00012718,2]
[323492018,1714049448612,-500.0,0.00012718,2]
[323492019,1714049448622,-500.0,0.00012718,2]
[323492020,1714049448631,-1080.19,0.00012718,2]
[323492021,1714049448640,-640.98,0.00012718,2]
[323492022,1714049448656,-500.0,0.00012718,2]
[323492023,1714049448665,-500.0,0.00012718,2]
[323492024,1714049448674,-12983.83,0.00012718,2]
[323492025,1714049448683,-3843.45,0.00012718,2]
[323492026,1714049448692,-500.0,0.00012718,2]
[323492027,1714049448701,-1439.26,0.00012718,2]
[323492028,1714049448710,-500.0,0.00012718,2]
[323492029,1714049448720,-500.0,0.00012718,2]
[323492030,1714049448729,-500.0,0.00012718,2]
[323492031,1714049448738,-1070.09,0.00012718,2]
[323492032,1714049448747,-500.0,0.00012718,2]
[323492033,1714049448756,-500.0,0.00012718,2]
[323492034,1714049448765,-500.0,0.00012718,2]
[323492035,1714049448774,-1293.71,0.00012718,2]
[323492036,1714049448783,-221.25,0.00012718,2]
[323492037,1714049448793,-500.0,0.00012718,2]
[323492038,1714049448802,-500.0,0.00012718,2]
[323492039,1714049448811,-928.12,0.00012718,2]
[323492040,1714049448820,-500.0,0.00012718,2]
[323492041,1714049448829,-500.0,0.00012718,2]
[323492042,1714049448839,-2254.44,0.00012718,2]
[323492043,1714049448848,-500.0,0.00012718,2]
[323492044,1714049448857,-500.0,0.00012718,2]
[323492045,1714049448866,-779.21,0.00012718,2]
[323492046,1714049448877,-500.0,0.00012718,2]
[323492047,1714049448888,-500.0,0.00012718,2]
[323492048,1714049448899,-1142.88,0.00012718,2]
[323492049,1714049448909,-500.0,0.00012718,2]
[323492050,1714049448918,-1589.43,0.00012718,2]
[323492051,1714049448928,-500.0,0.00012718,2]
[323492052,1714049448937,-500.0,0.00012718,2]
[323492053,1714049448946,-500.0,0.00012718,2]
[323492054,1714049448955,-852.07,0.00012718,2]
[323492055,1714049448966,-500.0,0.00012718,2]
[323492056,1714049448977,-938.56,0.00012718,2]
[323492057,1714049448986,-500.0,0.00012718,2]
[323492058,1714049448995,-500.0,0.00012718,2]
[323492059,1714049449004,-500.0,0.00012718,2]
[323492060,1714049449013,-500.0,0.00012718,2]
[323492061,1714049449022,-3837.92,0.00012718,2]
[323492062,1714049449032,-500.0,0.00012718,2]
[323492063,1714049449041,-500.0,0.00012718,2]
[323492064,1714049449050,-612.84,0.00012718,2]
[323492065,1714049449059,-3121.16,0.00012718,2]
[323492066,1714049449069,-500.0,0.00012718,2]
[323492067,1714049449079,-500.0,0.00012718,2]
[323492068,1714049449090,-500.0,0.00012718,2]
[323492069,1714049449099,-500.0,0.00012718,2]
[323492070,1714049449108,-500.0,0.00012718,2]
[323492071,1714049449118,-500.0,0.00012718,2]
[323492072,1714049449127,-500.0,0.00012718,2]
[323492073,1714049449136,-9015.46,0.00012718,2]
[323492074,1714049449149,-1179.12,0.00012718,2]
[323492075,1714049449158,-500.0,0.00012718,2]
[323492076,1714049449167,-1376.75,0.00012718,2]
[323492077,1714049449177,-500.0,0.00012718,2]
[323492078,1714049449187,-500.0,0.00012718,2]
[323492079,1714049449196,-2679.55,0.00012718,2]
[323492080,1714049449206,-500.0,0.00012718,2]
[323492081,1714049449216,-1804.82,0.00012718,2]
[323492082,1714049449225,-500.0,0.00012718,2]
[323492083,1714049449234,-500.0,0.00012718,2]
[323492084,1714049449243,-3415.61,0.00012718,2]
[323492085,1714049449253,-500.0,0.00012718,2]
[323492086,1714049449262,-1140.85,0.00012718,2]
[323492087,1714049449272,-17406.02,0.00012718,2]
[323492088,1714049449281,-2053.76,0.00012718,2]
[323492089,1714049449292,-897.66,0.00012718,2]
[323492090,1714049449302,-500.0,0.00012718,2]
[323492091,1714049449311,-3689.77,0.00012718,2]
[323492092,1714049449321,-3217.0,0.00012718,2]
[323492093,1714049449330,-500.0,0.00012718,2]
[323492094,1714049449340,-1706.73,0.00012718,2]
[323492095,1714049449350,-500.0,0.00012719,2]
[323492096,1714049449359,-500.0,0.00012719,2]
[323492097,1714049449369,-500.0,0.00012719,2]
[323492098,1714049449378,-500.0,0.00012719,2]
[323492099,1714049449388,-500.0,0.00012719,2]
[323492100,1714049449400,-500.0,0.00012719,2]